Cogmind - Beta 15 @@@ ROGUE MODE // 2025.08.20 @ 22:26:52 Player: the Result: Self-destructed Performance ------------- Evolutions (9) 4500 Regions Visited (23) 4600 Robots Destroyed (283) 1415 Value Destroyed (12272) 12272 Prototype IDs (64) 1280 Alien Tech Used (4) 800 Bonus (4877) 4877 TOTAL SCORE: 29744 Bonus ------- High Alert Combat Kills 1405 Follower Combat Kills 67 Met Zhirov 300 Met Warlord at Base 500 MAIN.C Attacked Warlord 500 Warlord Defense Kills 610 Found Hidden Lab 3000 Friendly Fire -1505 Cogmind --------- Core Integrity 1513/1600 Matter 27/300 Energy 24/301 System Corruption 0% Temperature Cool (-191) Movement Rolling (101) Location -1/Access Parts ------- > --- POWER (4) -------- Singularity-Neutrino Reactor > --- PROPULSION (6) --- Wheeled Centrium-Biometal Exoskeleton > --- UTILITY (11) ----- Armored Scrap Engine Advanced Cryofiber Web Huge Storage Unit Experimental Cloaking Device (fused) Medium Regenerative Plating Advanced Shield Generator > --- WEAPON (4) ------- Enhanced Nova Cannon > --- INVENTORY (25) --- Armored Medium Treads Armored Medium Treads Experimental Power Amplifier Advanced Heat Sink Advanced Heat Sink Large Storage Unit Experimental Energy Well (600) ECM Suite Medium Regenerative Plating Advanced Drone Bay (2/2) Core Reset Matrix Improved Matter Neutralizer Improved Matter Neutralizer Improved Matter Neutralizer Enhanced Nova Cannon Enhanced Nova Cannon Warp Cannon Warp Cannon Improved KE Penetrator Peak State ------------ > --- POWER ------------ Singularity-Neutrino Reactor > --- PROPULSION ------- Wheeled Centrium-Biometal Exoskeleton > --- UTILITY ---------- Armored Scrap Engine Advanced Cryofiber Web Advanced Heat Sink Huge Storage Unit Experimental Core Analyzer Experimental Cloaking Device Medium Regenerative Plating LC Capacitor > --- WEAPON ----------- Improved Matter Neutralizer Improved Matter Neutralizer Enhanced Nova Cannon Enhanced Nova Cannon > --- INVENTORY -------- Singularity Reactor Armored Medium Treads Armored Medium Treads Experimental Power Amplifier Advanced Heat Sink Large Storage Unit Experimental Energy Well ECM Suite Medium Regenerative Plating Advanced Shield Generator Advanced Drone Bay Transdimensional Reconstructor Core Reset Matrix Improved Matter Neutralizer Enhanced Nova Cannon Warp Cannon Warp Cannon Improved KE Penetrator [Rating: 206] Favorites ----------- Power Constructs Engine Improved Ion Engine Power Core Nuclear Core Reactor Constructs Propulsion Constructs Treads Light Treads Wheel Constructs Hover Unit Combat Linear Gravjet Flight Unit Improved Cesium-ion Thruster Utility High-capacity Storage Unit Device Armored Scrap Engine Storage High-capacity Storage Unit Processor Enhanced Optical Array Hackware System Mapper Protection Hardened Light Armor Plating Artifact LC Capacitor Weapon Constructs Energy Gun Heavy EM Pulse Gun Energy Cannon Constructs Ballistic Gun Enhanced Autogun Ballistic Cannon Gauss Cannon Launcher Mini Grenade Launcher Special Weapon Mining Laser Impact Weapon Powered Hammer Slashing Weapon Chainsword Build | -11 -10 -10 -8 -7 -7 -7 -5 -5 -5 -5 -4 -4 -4 -4 -4 -4 -4 -3 -3 -3 -3 -2 -1 ------- Run | Yrd Mat Sub Mat Fac Sto Rec Fac Upp Upp War Pro Fac Was Fac Upp Upp Zhi Pro Res Arm Lab Res Acc Slots Evolved 18 | . . . 4 2 . . 4 . . . . 2 . . . . . . 2 . . 2 2 Power 3 | . . . 1 . . . . . . . . . . . . . . . 1 . . . 1 Propulsion 4 | . . . 1 1 . . . . . . . 1 . . . . . . . . . . 1 Utility 9 | . . . 1 1 . . 4 . . . . 1 . . . . . . 1 . . 1 . Weapon 2 | . . . 1 . . . . . . . . . . . . . . . . . . 1 . Parts Attached 151 | 8 14 14 17 13 8 3 12 2 1 11 4 3 1 5 1 . 3 . 9 7 12 2 1 Power 11 | 1 1 1 2 2 1 . . . . . 1 . . . . . . . . 1 . . 1 Engine 7 | 1 1 1 1 2 1 . . . . . . . . . . . . . . . . . . Core 1 | . . . 1 . . . . . . . . . . . . . . . . . . . . Reactor 3 | . . . . . . . . . . . 1 . . . . . . . . 1 . . 1 Propulsion 22 | 2 5 2 5 3 2 1 . . . . . . . . . . . . 1 1 . . . Treads 8 | 2 . . 3 2 . . . . . . . . . . . . . . 1 . . . . Leg . | . . . . . . . . . . . . . . . . . . . . . . . . Wheel 12 | . 5 2 2 1 1 1 . . . . . . . . . . . . . . . . . Hover 1 | . . . . . . . . . . . . . . . . . . . . 1 . . . Flight 1 | . . . . . 1 . . . . . . . . . . . . . . . . . . Utility 73 | 2 3 1 5 4 1 1 10 1 1 11 2 3 1 5 1 . 3 . 8 2 6 2 . Device 36 | 1 . . 3 1 1 1 3 . 1 8 2 2 . 4 1 . 1 . 5 . 1 1 . Storage 7 | 1 1 . . . . . . . . . . . . . . . 1 . 1 2 1 . . Processor 9 | . 1 . . 1 . . 3 . . 1 . 1 . 1 . . . . 1 . . . . Hackware 6 | . . . . . . . 2 . . 1 . . . . . . . . 1 . 2 . . Protection 14 | . 1 1 2 2 . . 2 1 . 1 . . 1 . . . 1 . . . 1 1 . Artifact 1 | . . . . . . . . . . . . . . . . . . . . . 1 . . Weapon 45 | 3 5 10 5 4 4 1 2 1 . . 1 . . . . . . . . 3 6 . . Energy Gun 11 | 2 . 2 1 1 2 1 . 1 . . . . . . . . . . . . 1 . . Energy Cannon 15 | . 2 5 1 . . . . . . . 1 . . . . . . . . 2 4 . . Ballistic Gun 8 | 1 . 1 3 . 1 . 1 . . . . . . . . . . . . 1 . . . Ballistic Cannon 1 | . . . . 1 . . . . . . . . . . . . . . . . . . . Launcher 6 | . 2 2 . . 1 . 1 . . . . . . . . . . . . . . . . Special Weapon 2 | . 1 . . . . . . . . . . . . . . . . . . . 1 . . Impact Weapon 1 | . . . . 1 . . . . . . . . . . . . . . . . . . . Slashing Weapon 1 | . . . . 1 . . . . . . . . . . . . . . . . . . . Piercing Weapon . | . . . . . . . . . . . . . . . . . . . . . . . . Special Melee Weapon . | . . . . . . . . . . . . . . . . . . . . . . . . Unidentified Prototypes 36 | . . . 2 . 5 1 . . . 9 2 . . . . . 3 . . 3 10 . 1 Corrupted Parts 1 | . . . . . . . . . . 1 . . . . . . . . . . . . . System Corruption 7 | . . . . . . . . . . 7 . . . . . . . . . . . . . Parts Lost 37 | . . 10 5 . 1 . 6 . 1 7 . . . . . . . . 2 3 . 1 1 Power 6 | . . 1 1 . 1 . 1 . . 2 . . . . . . . . . . . . . Propulsion 7 | . . 3 2 . . . 1 . . . . . . . . . . . 1 . . . . Utility 13 | . . 1 1 . . . 4 . 1 3 . . . . . . . . . 1 . 1 1 Weapon 11 | . . 5 1 . . . . . . 2 . . . . . . . . 1 2 . . . Highest Loss Streak 3 | . . 3 3 . 1 . 3 . 1 3 . . . . . . . . 2 2 . 1 1 To Critical Strikes . | . . . . . . . . . . . . . . . . . . . . . . . . Average Backups 14 | 1 16 18 18 18 19 15 14 13 16 17 8 11 7 3 3 3 3 3 12 20 19 21 20 Power 1 | . 2 2 2 1 1 . . . . . . 1 . 1 1 1 1 1 1 1 1 1 . Propulsion 1 | . 2 1 3 2 3 2 . . . . . 1 1 . . . . . . 1 2 2 2 Utility 6 | . 5 7 5 6 7 7 7 9 12 10 5 6 4 1 1 1 1 1 6 8 9 9 8 Weapon 4 | . 5 5 5 6 7 3 5 3 3 5 2 2 1 1 1 1 . . 4 8 6 7 8 Tool/Special . | . . . . . . . . . . . . . . . . . . . . . . . . Unused Backups 84 | . 4 . 2 2 2 9 12 1 1 13 6 1 7 . . . 1 . 4 9 1 . 9 Power 8 | . 1 . 2 . . 2 . . . . 2 . 1 . . . . . . . . . . Propulsion 8 | . . . . . . 3 1 . . . 1 . 1 . . . . . . . . . 2 Utility 20 | . 1 . . 2 . 1 . . . 6 . . 4 . . . . . 2 . 1 . 3 Weapon 46 | . 2 . . . 2 3 10 1 1 7 3 1 1 . . . 1 . 2 9 . . 3 Tool/Special 2 | . . . . . . . 1 . . . . . . . . . . . . . . . 1 Average Slot Usage (%) 69 | . 100 98 77 86 82 51 50 58 58 59 63 54 48 47 57 57 56 57 53 51 51 51 37 Engine 6 | . 14 14 8 6 9 7 5 5 5 3 . . . . . . . . . . . . . Core 1 | . . . 4 7 1 . . . . . . . . . 5 5 5 5 3 . . . . Treads 7 | . 4 21 1 17 12 3 . 4 5 3 . . . . . . . . . . . . . Leg 1 | . . . . . . . 1 . . 1 4 5 5 5 5 5 5 5 3 . . . . Wheel 4 | . 23 5 12 4 9 7 3 . . . . . . . . . . . . 3 4 4 4 Device 11 | . 11 2 9 7 9 7 11 11 12 15 21 21 11 11 21 21 20 21 15 18 18 12 16 Storage 7 | . 14 14 9 7 7 7 5 5 5 5 5 5 2 . . . . . 3 4 4 4 4 Processor 7 | . . . . 4 7 7 7 11 11 11 5 6 10 13 15 15 15 15 14 10 9 7 4 Hackware 2 | . . . . . . . 3 11 9 4 5 5 5 5 5 5 5 5 4 4 . . . Protection 3 | . 2 11 6 7 5 . . . . . . . 2 1 . . . . . . . 4 4 Energy Gun 3 | . 13 10 . 5 2 2 . . . . . . . . . . . . . . . . . Energy Cannon 4 | . 13 12 11 . . . . 4 3 1 3 . 2 . . . . . 3 2 6 8 4 Ballistic Gun 2 | . . 3 13 7 6 3 2 . . . 2 . . . . . . . . . . . . Ballistic Cannon 1 | . . . . . . . 1 . 1 3 1 5 2 5 5 5 5 5 . . . . . Peak Build Rating 206 | 7 13 18 27 52 53 58 69 84 82 131 127 127 133 136 137 137 138 138 153 157 190 206 144 Average Rating 73 | 5 11 14 21 37 46 48 59 76 79 104 119 120 124 123 136 137 136 138 143 142 161 187 116 On Entrance 92 | . 7 13 16 18 52 42 50 67 81 78 96 126 120 133 132 137 137 138 138 131 136 180 183 Naked Turns . | . . . . . . . . . . . . . . . . . . . . . . . . Heaviest Build 163 | 13 56 68 85 79 75 75 85 56 63 117 108 94 100 100 71 67 67 67 140 139 152 163 121 Greatest Support 153 | 40 40 40 60 60 40 104 84 130 153 106 106 105 105 105 105 105 105 105 114 152 152 152 152 Greatest Overweight (x) 24 | . 2 5 24 2 2 2 1 . . 1 1 . . . . . . . 1 . . 1 . Average Overweight (x) . | . 1 1 2 1 1 . . . . . . . . . . . . . . . . . . Largest Inventory Capacity 25 | 8 20 20 20 20 20 20 20 20 20 20 20 20 20 5 5 5 5 5 25 25 25 25 25 Average Capacity 18 | 6 18 20 20 20 20 20 20 20 20 20 20 20 11 5 5 5 5 5 24 25 25 25 25 Most Carried 25 | 5 20 20 20 20 20 20 20 19 20 20 16 14 14 5 5 5 5 5 19 25 25 25 24 Average Carried 15 | 2 16 18 19 19 19 16 14 15 18 18 9 12 8 5 5 5 4 5 15 22 21 24 20 Final Capacity 25 | 8 20 20 20 20 20 20 20 20 20 20 20 20 5 5 5 5 5 5 25 25 25 25 25 Final Carried 24 | 5 20 20 17 20 20 17 13 19 18 17 12 14 5 5 5 5 5 5 17 20 24 24 20 Scrap Engine Consumption 182 | . . . . . . 50 24 9 10 34 11 8 4 2 1 2 3 1 12 9 . 1 1 Constructs Created 6 | . . . . . . 3 . . . 2 . . . . . . . . . . . . 1 Constructs Modified 73 | . . . . . . 19 9 5 6 11 5 1 5 1 1 . . . 6 4 . . . Class Distribution -------------------- 40% | Mutant 38% | Hacker-Construct 7% | Construct 6% | Commander-Construct Dominant Class ---------------- Mutant | -10/Materials Mutant | -10/Subcaves Tank | -8/Materials Mutant | -7/Factory Mutant | -7/Storage Commander-Construct | -7/Recycling Construct | -5/Factory Hacker-Construct | -5/Upper Caves Hacker-Construct | -5/Upper Caves Hacker-Construct | -5/Warlord Hacker-Construct | -4/Proximity Caves Hacker-Construct | -4/Factory Hacker-Construct | -4/Waste Hacker-Construct | -4/Factory Hacker-Construct | -4/Upper Caves Hacker-Construct | -4/Upper Caves Hacker-Construct | -4/Zhirov Hacker-Construct | -3/Proximity Caves Hacker-Construct | -3/Research Hacker-Construct | -3/Armory Mutant | -3/Lab Mutant | -2/Research Mutant | -1/Access Resources | -11 -10 -10 -8 -7 -7 -7 -5 -5 -5 -5 -4 -4 -4 -4 -4 -4 -4 -3 -3 -3 -3 -2 -1 ----------- Run | Yrd Mat Sub Mat Fac Sto Rec Fac Upp Upp War Pro Fac Was Fac Upp Upp Zhi Pro Res Arm Lab Res Acc Matter Collected 7091 | 215 301 867 837 255 190 455 480 270 344 410 176 61 6 311 195 137 159 54 1179 123 66 . . Remotely 324 | . . . 259 65 . . . . . . . . . . . . . . . . . . . Salvage Created 14046 | 109 620 992 1627 190 105 828 1121 156 1008 228 242 244 774 329 169 54 401 . 3204 1373 66 206 . Parts 653 | 11 49 50 87 6 2 32 32 8 28 7 11 17 9 18 8 2 5 . 189 67 5 10 . Haulers Intercepted 6 | . 1 . 3 . . . 1 . . . . . . . . . . . 1 . . . . Recyclers Shooed 6 | . 2 . . 1 . 1 2 . . . . . . . . . . . . . . . . Parts Field Recycled . | . . . . . . . . . . . . . . . . . . . . . . . . Retrieved Matter . | . . . . . . . . . . . . . . . . . . . . . . . . Parts Self-Destructed 49 | . . 4 . . . . . 3 22 . 7 . . . 8 2 3 . . . . . . Prevented 13 | . . 4 . . . . . 2 7 . . . . . . . . . . . . . . Kills | -11 -10 -10 -8 -7 -7 -7 -5 -5 -5 -5 -4 -4 -4 -4 -4 -4 -4 -3 -3 -3 -3 -2 -1 ------- Run | Yrd Mat Sub Mat Fac Sto Rec Fac Upp Upp War Pro Fac Was Fac Upp Upp Zhi Pro Res Arm Lab Res Acc Combat Hostiles Destroyed 192 | . 14 23 31 1 1 4 10 2 15 5 4 3 3 3 3 3 . . 42 18 1 6 . Melee 2 | . . . . . . . 1 . . 1 . . . . . . . . . . . . . Guns 16 | . 2 3 4 1 . 4 1 . . . 1 . . . . . . . . . . . . Cannons 115 | . 2 10 2 . 1 . 3 2 12 4 3 3 3 3 3 3 . . 42 17 . 2 . AOE 47 | . 10 6 23 . . . 3 . . . . . . . . . . . . 1 . 4 . Classes Destroyed 26 | 2 8 4 5 . . . 1 2 1 2 . . 1 . . . . . . . . . . Worker 14 | . 4 . 4 . . . 4 . . . . . . . . . . . 2 . . . . Builder 12 | . 2 . 4 . . . . . . . . 1 . . . . . . 5 . . . . Tunneler 3 | 2 . . . . . . . . . . . . . 1 . . . . . . . . . Hauler 6 | . 1 . 3 . . . 1 . . . . . . . . . . . 1 . . . . Recycler 23 | 1 2 . 5 1 1 8 4 . . . . . . 1 . . . . . . . . . Minesweeper 1 | . . . . . . . . 1 . . . . . . . . . . . . . . . Mechanic 4 | . 1 . . 1 . . . . 1 . . . . . . . . . 1 . . . . Operator 8 | . 1 . 2 . . . 1 . . . . 1 . . . . . . 2 1 . . . Turret 2 | . . 2 . . . . . . . . . . . . . . . . . . . . . Watcher 16 | . 3 . 3 . . . . . . . . 1 . . . . . . 5 4 . . . Swarmer 25 | . 9 4 . . . 1 . . 3 . . . . . . 3 . . . . . 5 . Saboteur 1 | . . . . . . . . . . 1 . . . . . . . . . . . . . Grunt 57 | . 5 2 20 . . . . . 9 2 . . . . . . . . 15 3 . 1 . Brawler 6 | . . . 2 . . . . . . . . . . . . . . . . 4 . . . Duelist 4 | . . . 1 . . . . . . . . . . . . . . . . 3 . . . Protector 4 | . . . 3 . . . . . . . . . . . . . . . . 1 . . . Sentry 20 | . . . 3 1 1 3 2 . 2 . . . . 1 1 . . . 6 . . . . Specialist 1 | . . . . . . . . 1 . . . . . . . . . . . . . . . Hunter 12 | . . . 2 . . . 2 . . . 2 2 . 2 . . . . 2 . . . . Programmer 38 | . . . . . . . 6 1 . 1 2 1 . . 2 . . . 19 6 . . . Compactor 3 | . . . . . . . . . . . . . 3 . . . . . . . . . . Armor Guard 1 | . . . . . . . . . . . . . . . . . . . . 1 . . . Enhanced Grunt 1 | . . . . . . . . . . 1 . . . . . . . . . . . . . Executioner 1 | . . . . . . . . . . 1 . . . . . . . . . . . . . Cobbler 1 | . . 1 . . . . . . . . . . . . . . . . . . . . . Subdweller 18 | . . 17 . . . 1 . . . . . . . . . . . . . . . . . Scientist 1 | . . 1 . . . . . . . . . . . . . . . . . . . . . Decomposer 1 | . . . . . . . . . . . 1 . . . . . . . . . . . . Mutant 1 | . . . . . . . . . 1 . . . . . . . . . . . . . . Best Kill Streak 10 | 2 10 7 10 1 1 1 6 1 4 2 2 4 3 3 2 2 . . 5 9 1 5 . Combat Bots Only 8 | . 5 4 8 1 1 1 4 1 3 2 2 3 3 3 2 2 . . 5 4 1 5 . Max Kills in Single Turn 4 | 1 4 2 4 1 1 1 4 1 1 1 1 1 1 1 1 1 . . 2 1 1 4 . Gunslinging . | . . . . . . . . . . . . . . . . . . . . . . . . Exploded 4 | . 2 1 3 . . . 3 . . . . . . . . . . . . 1 . 4 . Melee 1 | . . . . . . . 1 . . 1 . . . . . . . . . . . . . Uniques/NPCs Destroyed 1 | . . . . . . . . . . . . . . . . . . . . . 1 . . A5 (-3/Lab) Combat | -11 -10 -10 -8 -7 -7 -7 -5 -5 -5 -5 -4 -4 -4 -4 -4 -4 -4 -3 -3 -3 -3 -2 -1 -------- Run | Yrd Mat Sub Mat Fac Sto Rec Fac Upp Upp War Pro Fac Was Fac Upp Upp Zhi Pro Res Arm Lab Res Acc Hostile Shots Fired 1287 | . 32 91 76 45 26 55 117 15 69 225 59 63 8 32 8 . . . 133 102 9 116 6 Missed 413 | . 12 32 27 13 8 24 27 2 18 84 19 24 1 14 4 . . . 38 33 2 28 3 Hits 874 | . 20 59 49 32 18 31 90 13 51 141 40 39 7 18 4 . . . 95 69 7 88 3 Melee 12 | . . . . . . . . . . 2 . . 7 . . . . . . 3 . . . Projectile 862 | . 20 59 49 32 18 31 90 13 51 139 40 39 . 18 4 . . . 95 66 7 88 3 AOE 14 | . . 2 . . . . . . . 10 . 2 . . . . . . . . . . . Critical Strikes 41 | . . 1 2 . . . 2 2 1 6 1 1 4 . . . . . 5 8 . 8 . Part Disruptions 1 | . . . . . . . . . . . . . . . . . . . . . 1 . . Damage Taken 16947 | . 217 1331 956 231 227 263 1593 239 954 3141 707 790 384 283 83 . . . 1972 1471 89 1951 65 Core 1821 | . 24 178 20 18 28 40 231 13 115 345 86 80 51 68 . . . . 145 171 13 195 . Absorbed by Shields 1207 | . . . . . . . . . . 422 . . . . . . . . 106 452 90 137 . Ignored by Resistances 147 | . . . . . . . 147 . . . . . . . . . . . . . . . . Regen/Repaired (Parts) 5269 | . . . . . . 182 259 134 566 1444 454 457 596 . . . 100 . 781 92 2 200 2 Core Remaining (%) 73 | 100 . 19 96 . . 87 . . . . 21 . . . . . . 82 . . 95 86 . Volleys Fired 975 | 11 46 119 76 8 4 51 57 17 59 28 26 25 18 9 30 37 8 50 154 125 9 8 . Largest 4 | 2 2 2 3 3 3 3 1 1 1 1 2 1 1 1 1 1 1 1 1 1 1 4 . Hottest 466 | 80 112 160 240 133 145 200 112 180 180 148 91 82 123 123 123 123 123 123 123 113 120 466 . Shots Fired 1175 | 22 77 185 137 15 10 60 57 17 59 28 31 25 18 9 30 37 8 49 153 120 10 18 . Gun 282 | 22 44 65 56 15 6 54 14 . . . 6 . . . . . . . . . . . . Cannon 820 | . 17 97 51 . 4 6 40 17 58 28 25 25 18 9 30 37 8 49 153 120 10 18 . Launcher 68 | . 11 23 30 . . . 3 . 1 . . . . . . . . . . . . . . Special 5 | . 5 . . . . . . . . . . . . . . . . . . . . . . Kinetic 474 | . . 38 86 10 7 30 20 . 1 20 10 25 18 9 30 37 8 49 . 76 . . . Thermal 403 | . 5 24 51 5 3 14 37 12 18 8 1 . . . . . . . 153 44 10 18 . Explosive 25 | . 11 14 . . . . . . . . . . . . . . . . . . . . . Electromagnetic 253 | 22 61 109 . . . 16 . 5 40 . . . . . . . . . . . . . . Entropic 20 | . . . . . . . . . . . 20 . . . . . . . . . . . . Robot Hit Streak 25 | 4 8 25 13 5 8 15 6 6 6 3 5 6 17 6 7 3 6 . 12 7 1 5 . Robot Miss Streak 9 | 2 4 3 3 3 1 4 4 2 4 9 2 3 1 1 3 1 1 . 5 4 4 1 . Penetration Max 1 | . . . . . . . . . . . 1 . 1 . . . . . . 1 . . . Secondary Targets . | . . . . . . . . . . . . . . . . . . . . . . . . Capacitor 226 | . . . . . . . . . . . . . . . . . . . 134 86 6 . . Shots Hit Robots 599 | 12 31 96 76 9 11 45 50 9 31 11 20 14 17 7 5 3 7 . 78 54 1 12 . Core Hits 382 | 3 32 40 88 6 3 39 35 3 15 4 8 8 5 5 2 2 3 . 42 32 . 7 . Critical Kills 3 | . . . 1 . . . 1 . . . . . . . . . . . . . 1 . . Critical Parts Destroyed 3 | . . . . . 2 . 1 . . . . . . . . . . . . . . . . Critical Strikes 26 | . 1 2 1 . 2 . 2 . . . 4 3 1 . . 1 . . 5 3 1 . . Meltdown 2 | . . . 1 . . . . . . . . . . . . . . . . . 1 . . Corrupt 3 | . 1 2 . . . . . . . . . . . . . . . . . . . . . Smash 4 | . . . . . 2 . 2 . . . . . . . . . . . . . . . . Sunder 17 | . . . . . . . . . . . 4 3 1 . . 1 . . 5 3 . . . Melee Attacks 57 | . . . . 16 16 14 11 . . . . . . . . . . . . . . . . Impact 43 | . . . . 2 16 14 11 . . . . . . . . . . . . . . . . Slashing 14 | . . . . 14 . . . . . . . . . . . . . . . . . . . Piercing . | . . . . . . . . . . . . . . . . . . . . . . . . Sneak Attacks 7 | . . . . 2 1 2 2 . . . . . . . . . . . . . . . . Combat Hostiles . | . . . . . . . . . . . . . . . . . . . . . . . . Follow-up Attacks . | . . . . . . . . . . . . . . . . . . . . . . . . Damage Inflicted 43833 | 160 1520 2587 5318 293 362 1099 2696 466 1583 1887 913 926 1378 640 601 446 908 . 13254 5696 29 1071 . Guns 3140 | 160 331 493 478 148 104 942 266 . . . 218 . . . . . . . . . . . . Cannons 31149 | . 246 1189 821 . 87 30 1058 466 1583 1887 695 862 1362 626 601 328 908 . 12620 5289 29 462 . Explosions 8598 | . 943 905 4019 . . . 899 . . . . 64 . . . 118 . . 634 407 . 609 . Melee 901 | . . . . 130 171 127 473 . . . . . . . . . . . . . . . . Ramming 45 | . . . . 15 . . . . . . . . 16 14 . . . . . . . . . Kinetic 16695 | . . 578 4198 69 104 430 1261 . . 1480 280 862 1362 626 601 328 908 . . 3608 . . . Thermal 19051 | . 268 258 821 79 87 282 962 302 459 407 35 . . . . 118 . . 12620 1862 29 462 . Explosive 2688 | . 675 437 107 . . . . . . . . . . . . . . . 634 226 . 609 . Electromagnetic 3855 | 160 577 1314 192 . . 260 . 164 1124 . . 64 . . . . . . . . . . . Impact 841 | . . . . 70 171 127 473 . . . . . . . . . . . . . . . . Slashing 60 | . . . . 60 . . . . . . . . . . . . . . . . . . . Piercing . | . . . . . . . . . . . . . . . . . . . . . . . . Entropic 598 | . . . . . . . . . . . 598 . . . . . . . . . . . . Highest Corruption 23 | . . . . . . . 2 2 2 19 21 . 6 6 6 6 6 6 9 18 23 . . Average Corruption 7 | . . . . . . . 1 1 2 12 20 . 5 6 6 6 6 6 5 13 22 . . Corruption Purged 2 | . . . . . . . 2 . . . . . . . . . . . . . . . . Corruption Blocked . | . . . . . . . . . . . . . . . . . . . . . . . . Effects 280 | . . . . . . . 4 10 15 24 25 . 3 4 22 32 11 19 52 42 17 . . Message Errors 66 | . . . . . . . . 5 4 4 8 . . 1 6 10 3 1 11 9 4 . . Matter Fused 66 | . . . . . . . 2 3 3 5 6 . . 1 4 8 4 6 12 6 6 . . Heat Flow Errors 38 | . . . . . . . 1 . 2 3 2 . . 1 4 1 1 2 9 8 4 . . Energy Discharges 33 | . . . . . . . 1 . 2 2 3 . . . 3 8 2 4 3 5 . . . Parts Rejected 5 | . . . . . . . . . . . . . 2 . . . . . 3 . . . . Parts Fused 5 | . . . . . . . . . . . . . 1 . 1 . . . . 2 1 . . Data Loss (minor) 39 | . . . . . . . . 2 3 5 2 . . 1 4 4 1 3 9 4 1 . . Data Loss (major) 10 | . . . . . . . . . 1 1 2 . . . . . . 2 2 2 . . . Misfires 1 | . . . . . . . . . . . . . . . . . . . . . 1 . . Alerts 4 | . . . . . . . . . . . . . . . . 1 . . 2 1 . . . Misdirections 5 | . . . . . . . . . . 4 1 . . . . . . . . . . . . Weapon Failures 8 | . . . . . . . . . . . 1 . . . . . . 1 1 5 . . . Overload Shots . | . . . . . . . . . . . . . . . . . . . . . . . . Overflow Damage 5655 | . 85 17 79 60 106 89 283 80 25 400 89 36 . 35 87 78 302 . 3366 423 . 15 . Projectiles 4994 | . 34 . 12 . . . 43 80 25 400 89 36 . 35 87 78 302 . 3342 416 . 15 . Explosions 198 | . 51 17 67 . . . 32 . . . . . . . . . . . 24 7 . . . Melee 463 | . . . . 60 106 89 208 . . . . . . . . . . . . . . . . Knockbacks 27 | . . . . 1 . 1 2 . . 5 . 5 . 2 . . . . . 11 . . . Impact 3 | . . . . 1 . 1 1 . . . . . . . . . . . . . . . . Kinetic 22 | . . . . . . . 1 . . 4 . 4 . 2 . . . . . 11 . . . Secondary 2 | . . . . . . . . . . 1 . 1 . . . . . . . . . . . Self-Inflicted Damage 489 | . 31 30 147 . . . 88 . . . . 35 . . . . . . 21 75 . 62 . Shots 14 | . 1 2 4 . . . 3 . . . . 1 . . . . . . 1 1 . 1 . Rammed 3 | . . . . 3 . . . . . . . . . . . . . . . . . . . Targets Rammed 7 | . . . . 3 . . . . . . . . 1 3 . . . . . . . . . Kicked 4 | . . . . . . . . . . . . . 1 3 . . . . . . . . . Crushed . | . . . . . . . . . . . . . . . . . . . . . . . . Highest Temperature 460 | 108 216 171 415 168 271 107 408 357 450 315 249 142 273 220 304 380 252 217 460 264 320 374 . Average Temperature 99 | 45 57 26 79 59 148 30 139 117 157 92 44 51 69 82 127 140 69 85 122 80 102 117 . Received Heat Transfer 2195 | . 45 192 423 54 36 90 45 27 252 301 . . . . . . . . 213 199 . 309 9 Effects 21 | . . . 4 . . . 2 1 1 . . . . . 1 1 . . 9 . . 2 . Shutdowns 6 | . . . 3 . . . . . . . . . . . . . . . 3 . . . . Energy Bleed 2 | . . . . . . . . . . . . . . . . 1 . . 1 . . . . Interference 4 | . . . . . . . . . . . . . . . 1 . . . 1 . . 2 . Matter Decay 3 | . . . 1 . . . 1 . 1 . . . . . . . . . . . . . . Short Circuit 2 | . . . . . . . 1 . . . . . . . . . . . 1 . . . . Damage (minor) 2 | . . . . . . . . 1 . . . . . . . . . . 1 . . . . Damage (major) 2 | . . . . . . . . . . . . . . . . . . . 2 . . . . Siege Activations . | . . . . . . . . . . . . . . . . . . . . . . . . Martial Activations . | . . . . . . . . . . . . . . . . . . . . . . . . Shielding Activations . | . . . . . . . . . . . . . . . . . . . . . . . . Robots Disrupted . | . . . . . . . . . . . . . . . . . . . . . . . . Combat Hostiles . | . . . . . . . . . . . . . . . . . . . . . . . . Robots Corrupted 11 | . . 4 . 1 . . 3 . 3 . . . . . . . . . . . . . . Combat Hostiles 9 | . . 4 . . . . 2 . 3 . . . . . . . . . . . . . . Parts Fried 41 | . . 17 . . . . 10 1 11 . . 2 . . . . . . . . . . . Impact Corruptions 14 | . . . . 2 3 4 5 . . . . . . . . . . . . . . . . Robots Melted 3 | . . . 2 . . . . . . . . . . . . . . . . . 1 . . Combat Hostiles 3 | . . . 2 . . . . . . . . . . . . . . . . . 1 . . Parts Melted 14 | . . 1 6 . . 2 . . 1 . . . . . . . . . . . 4 . . Heat Transferred 5047 | . 300 309 1110 175 200 550 925 222 333 150 . . . . . 160 . . . 187 19 407 . Parts Sabotaged 3 | . . . . . . . . . . 3 . . . . . . . . . . . . . Parts Stolen . | . . . . . . . . . . . . . . . . . . . . . . . . Parts Stripped . | . . . . . . . . . . . . . . . . . . . . . . . . Power Chain Reactions 9 | . 7 1 . . . . . . . . . . . . . . . . . 1 . . . Alert | -11 -10 -10 -8 -7 -7 -7 -5 -5 -5 -5 -4 -4 -4 -4 -4 -4 -4 -3 -3 -3 -3 -2 -1 ------- Run | Yrd Mat Sub Mat Fac Sto Rec Fac Upp Upp War Pro Fac Was Fac Upp Upp Zhi Pro Res Arm Lab Res Acc Maximum Alert Level 3 | . 1 . 3 2 . . 1 . . . . . . . . . . . 3 3 . 1 . Low Security (%) 68 | 100 66 . 67 37 100 100 99 . . . . 100 100 100 . . . . 41 . . 65 100 Level 1 11 | . 33 . 3 48 . . . . . . . . . . . . . . 17 . . 34 . Level 2 10 | . . . 8 13 . . . . . . . . . . . . . . 14 70 . . . Level 3 9 | . . . 19 . . . . . . . . . . . . . . . 27 29 . . . Level 4 . | . . . . . . . . . . . . . . . . . . . . . . . . Level 5 . | . . . . . . . . . . . . . . . . . . . . . . . . High Security . | . . . . . . . . . . . . . . . . . . . . . . . . Max Security . | . . . . . . . . . . . . . . . . . . . . . . . . Peak Influence 1054 | 5 338 . 1054 467 50 34 205 . . . . 79 20 70 . . . . 1041 799 . 240 132 Initial 488 | . . . 98 467 50 . 2 . . . . . 20 . . . . . . 488 . . 132 Average 199 | . 132 . 295 257 11 5 84 . . . . 19 2 30 . . . . 406 565 . 76 124 Influence Increases 6917 | 15 562 260 1366 89 116 238 535 60 385 265 90 153 2 107 70 60 15 . 1582 681 . 266 . Destroy 0b10 Robot/C 3360 | . 280 160 560 20 20 80 200 40 280 100 80 60 . 60 60 60 . . 840 340 . 120 . Destroy 0b10 Robot/NC 490 | 15 70 . 120 10 5 60 50 5 5 . . 15 . 10 . . 15 . 80 30 . . . Destroy Leader 604 | . 68 10 112 10 10 . 62 . 20 . 10 22 . 20 10 . . . 182 48 . 20 . Allied During Kill 40 | . . . . . . 19 1 . 20 . . . . . . . . . . . . . . Successful Hack 223 | . 36 . 17 6 . 35 23 . . . . 10 . . . . . . 96 . . . . Disable Machine 600 | . 15 . 165 15 45 30 45 . . . . 30 . 15 . . . . 120 105 . 15 . Anti-Garrison Action 150 | . . . 150 . . . . . . . . . . . . . . . . . . . . Destroy Structure 940 | . 93 . 227 13 6 14 94 . . . . 16 2 2 . . . . 204 158 . 111 . Partial Spotted 15 | . . . . . . . . . . . . . . . . . . . 15 . . . . Lose Combat Pursuer 495 | . . 90 15 15 30 . 60 15 60 165 . . . . . . . . 45 . . . . Influence Decreases 6815 | 15 475 157 528 1005 228 231 381 221 371 148 221 94 61 82 93 10 67 . 651 919 693 46 118 Entered New Map 2296 | . . 43 92 561 62 . 5 61 . 14 131 . 39 . 10 2 52 . . 443 693 . 88 Time Decay 3832 | 15 325 84 386 434 156 231 286 160 286 82 90 94 22 82 83 8 15 . 481 446 . 46 20 Lost Part 262 | . . 30 50 . 10 . 50 . 10 52 . . . . . . . . 20 30 . . 10 Lost Ally 125 | . . . . 10 . . 40 . 75 . . . . . . . . . . . . . . Purge Threat 300 | . 150 . . . . . . . . . . . . . . . . . 150 . . . . Squads Dispatched 41 | . 3 . 6 3 2 . 11 . 1 . . . . 1 . . . . 11 2 . 1 . Investigation 4 | . 1 . . . . . 1 . . . . . . . . . . . 2 . . . . Extermination 14 | . . . . 2 2 . 2 . . . . . . . . . . . 6 2 . . . Reinforcement 9 | . 2 . 2 1 . . 2 . . . . . . 1 . . . . . . . 1 . Assault 5 | . . . 4 . . . . . 1 . . . . . . . . . . . . . . Garrison 9 | . . . . . . . 6 . . . . . . . . . . . 3 . . . . Intercept . | . . . . . . . . . . . . . . . . . . . . . . . . Searches Triggered . | . . . . . . . . . . . . . . . . . . . . . . . . Construction Impeded 4 | . . . 2 . . . 1 . . . . . . . . . . . . . . 1 . Haulers Reinforced . | . . . . . . . . . . . . . . . . . . . . . . . . Active Scanning Responses . | . . . . . . . . . . . . . . . . . . . . . . . . Cargo Convoy Interrupts . | . . . . . . . . . . . . . . . . . . . . . . . . Stealth | -11 -10 -10 -8 -7 -7 -7 -5 -5 -5 -5 -4 -4 -4 -4 -4 -4 -4 -3 -3 -3 -3 -2 -1 --------- Run | Yrd Mat Sub Mat Fac Sto Rec Fac Upp Upp War Pro Fac Was Fac Upp Upp Zhi Pro Res Arm Lab Res Acc Distress Signals 11 | . 1 . 1 . . 4 . . . 2 . . . . . . . . 1 2 . . . Communications Jammed . | . . . . . . . . . . . . . . . . . . . . . . . . Distress Signals . | . . . . . . . . . . . . . . . . . . . . . . . . Times Spotted 343 | . 20 28 47 4 2 7 20 3 20 72 4 5 6 6 2 3 . . 49 25 1 13 6 Peak Tracking Total 13 | . 3 3 7 1 3 1 5 1 5 13 3 2 3 2 1 3 . . 5 6 1 7 4 Tactical Retreats 19 | . . 4 1 1 2 1 2 1 2 3 . . . . . . . . 2 . . . . Traps | -11 -10 -10 -8 -7 -7 -7 -5 -5 -5 -5 -4 -4 -4 -4 -4 -4 -4 -3 -3 -3 -3 -2 -1 ------- Run | Yrd Mat Sub Mat Fac Sto Rec Fac Upp Upp War Pro Fac Was Fac Upp Upp Zhi Pro Res Arm Lab Res Acc Traps Triggered 10 | . . 3 . 1 3 . . . . . . 1 . . . . . . 2 . . . . Indirectly . | . . . . . . . . . . . . . . . . . . . . . . . . Trap Hack Attempts . | . . . . . . . . . . . . . . . . . . . . . . . . Triggered . | . . . . . . . . . . . . . . . . . . . . . . . . Disarmed . | . . . . . . . . . . . . . . . . . . . . . . . . Reprogrammed . | . . . . . . . . . . . . . . . . . . . . . . . . Reused . | . . . . . . . . . . . . . . . . . . . . . . . . Traps Extracted . | . . . . . . . . . . . . . . . . . . . . . . . . Installed 1 | . . . . . . . . 1 . . . . . . . . . . . . . . . Triggered . | . . . . . . . . . . . . . . . . . . . . . . . . Most Traps Carried 2 | . . . . . . . . 2 2 2 . . . . . . . . . . . . . Time Bombs Activated 2 | . . . . . . . . . . 1 . . 1 . . . . . . . . . . Exploded 2 | . . . . . . . . . . 1 . . 1 . . . . . . . . . . Machines | -11 -10 -10 -8 -7 -7 -7 -5 -5 -5 -5 -4 -4 -4 -4 -4 -4 -4 -3 -3 -3 -3 -2 -1 ---------- Run | Yrd Mat Sub Mat Fac Sto Rec Fac Upp Upp War Pro Fac Was Fac Upp Upp Zhi Pro Res Arm Lab Res Acc Machines Disabled 55 | . 1 5 12 1 3 2 3 2 1 1 . 2 . 1 . 2 . . 8 7 3 1 . Max in Single Turn 3 | . 1 3 3 1 1 1 2 1 1 1 . 1 . 1 . 1 . . 1 1 1 1 . Garrison Access 1 | . . . 1 . . . . . . . . . . . . . . . . . . . . Machines Repaired . | . . . . . . . . . . . . . . . . . . . . . . . . Machines Dismantled . | . . . . . . . . . . . . . . . . . . . . . . . . Machines Sabotaged . | . . . . . . . . . . . . . . . . . . . . . . . . Overloaded Fab Kills . | . . . . . . . . . . . . . . . . . . . . . . . . Hacking | -11 -10 -10 -8 -7 -7 -7 -5 -5 -5 -5 -4 -4 -4 -4 -4 -4 -4 -3 -3 -3 -3 -2 -1 --------- Run | Yrd Mat Sub Mat Fac Sto Rec Fac Upp Upp War Pro Fac Was Fac Upp Upp Zhi Pro Res Arm Lab Res Acc Machines Accessed 51 | . 6 3 4 2 . 8 3 . . 2 . 1 . . . . 5 . 11 3 3 . . Terminals 29 | . 6 . 3 2 . 5 3 . . . . . . . . . . . 9 1 . . . Fabricators 3 | . . . . . . . . . . . . 1 . . . . . . . 2 . . . Repair Stations 1 | . . . . . . . . . . . . . . . . . . . 1 . . . . Recycling Units 2 | . . . . . . 2 . . . . . . . . . . . . . . . . . Scanalyzers 1 | . . . 1 . . . . . . . . . . . . . . . . . . . . Garrison Access 1 | . . . . . . . . . . . . . . . . . . . 1 . . . . Total Hacks 163 | . 24 6 23 4 . 21 10 . . 3 . 2 . . . . 18 . 25 3 24 . . Successful 111 | . 16 6 19 1 . 9 2 . . 3 . 2 . . . . 18 . 11 . 24 . . Failed 52 | . 8 . 4 3 . 12 8 . . . . . . . . . . . 14 3 . . . Catastrophic 14 | . 2 . . 2 . 4 2 . . . . . . . . . . . 4 . . . . Database Lockouts . | . . . . . . . . . . . . . . . . . . . . . . . . Manual 53 | . 18 1 7 2 1 9 8 1 . . . . . . . . . . 5 . 1 . . Terminals 83 | . 24 . 11 4 . 13 10 . . . . . . . . . . . 20 1 . . . Fabricators 4 | . . . . . . . . . . . . 2 . . . . . . . 2 . . . Repair Stations 4 | . . . . . . . . . . . . . . . . . . . 4 . . . . Recycling Units 5 | . . . . . . 5 . . . . . . . . . . . . . . . . . Scanalyzers 12 | . . . 12 . . . . . . . . . . . . . . . . . . . . Garrison Access 1 | . . . . . . . . . . . . . . . . . . . 1 . . . . Terminal Hacks 82 | . 12 6 4 . . 6 1 . . 3 . . . . . . 18 . 8 . 24 . . Record 37 | . . 4 . . . 1 . . . 2 . . . . . . 6 . 1 . 23 . . Part Schematic 5 | . . . . . . 1 . . . . . . . . . . 4 . . . . . . Robot Schematic 1 | . 1 . . . . . . . . . . . . . . . . . . . . . . Robot Analysis 8 | . 3 . . . . 1 . . . . . . . . . . 4 . . . . . . Prototype ID Bank 6 | . . . . . . 1 . . . . . . . . . . 4 . 1 . . . . Open Door 2 | . . 1 . . . . . . . 1 . . . . . . . . . . . . . Level Access Points 1 | . . . . . . . . . . . . . . . . . . . 1 . . . . Branch Access Points 1 | . . . 1 . . . . . . . . . . . . . . . . . . . . Terminal Index 2 | . 1 . 1 . . . . . . . . . . . . . . . . . . . . Alert Level 2 | . 1 . . . . . . . . . . . . . . . . . 1 . . . . Unreport Threat 2 | . 1 . . . . . . . . . . . . . . . . . 1 . . . . Locate Traps 2 | . 1 . . . . . 1 . . . . . . . . . . . . . . . . Maintenance Status 1 | . 1 . . . . . . . . . . . . . . . . . . . . . . Hauler Manifests 1 | . . . 1 . . . . . . . . . . . . . . . . . . . . Registered Components 2 | . 1 . 1 . . . . . . . . . . . . . . . . . . . . Registered Prototypes 1 | . . . . . . . . . . . . . . . . . . . 1 . . . . Zone Layout 4 | . 2 . . . . . . . . . . . . . . . . . 2 . . . . Proto ID Catalog 1 | . . 1 . . . . . . . . . . . . . . . . . . . . . Release Object 3 | . . . . . . 2 . . . . . . . . . . . . . . 1 . . Fabricator Hacks 2 | . . . . . . . . . . . . 2 . . . . . . . . . . . Network Status 1 | . . . . . . . . . . . . 1 . . . . . . . . . . . Build 1 | . . . . . . . . . . . . 1 . . . . . . . . . . . Repair Station Hacks 2 | . . . . . . . . . . . . . . . . . . . 2 . . . . Scan Component 1 | . . . . . . . . . . . . . . . . . . . 1 . . . . Repair 1 | . . . . . . . . . . . . . . . . . . . 1 . . . . Recycling Unit Hacks 2 | . . . . . . 2 . . . . . . . . . . . . . . . . . Retrieve Components 2 | . . . . . . 2 . . . . . . . . . . . . . . . . . Scanalyzer 12 | . . . 12 . . . . . . . . . . . . . . . . . . . . Insert Component 5 | . . . 5 . . . . . . . . . . . . . . . . . . . . Analyze 7 | . . . 7 . . . . . . . . . . . . . . . . . . . . Garrison Access Hacks . | . . . . . . . . . . . . . . . . . . . . . . . . Unauthorized Hacks 11 | . 4 . 3 1 . 1 1 . . . . . . . . . . . 1 . . . . Terminals 11 | . 4 . 3 1 . 1 1 . . . . . . . . . . . 1 . . . . Assimilate 1 | . . . . 1 . . . . . . . . . . . . . . . . . . . Botnet 7 | . 2 . 2 . . 1 1 . . . . . . . . . . . 1 . . . . Operators 2 | . 1 . 1 . . . . . . . . . . . . . . . . . . . . Sabotage 1 | . 1 . . . . . . . . . . . . . . . . . . . . . . Fabricators . | . . . . . . . . . . . . . . . . . . . . . . . . Repair Stations . | . . . . . . . . . . . . . . . . . . . . . . . . Recycling Units . | . . . . . . . . . . . . . . . . . . . . . . . . Scanalyzers . | . . . . . . . . . . . . . . . . . . . . . . . . Garrison Access . | . . . . . . . . . . . . . . . . . . . . . . . . Data Cores Recovered 3 | . . . . . . . 1 . . . . . . . . . . . 1 1 . . . Used . | . . . . . . . . . . . . . . . . . . . . . . . . Hacking Detections 37 | . 6 . 4 2 1 7 3 . . . . . . . . . . . 11 3 . . . Full Trace Events 3 | . . . . . . . 1 . . . . . . . . . . . 2 . . . . Feedback Events . | . . . . . . . . . . . . . . . . . . . . . . . . Feedback Blocked . | . . . . . . . . . . . . . . . . . . . . . . . . Robot Schematics Acquired 1 | . 1 . . . . . . . . . . . . . . . . . . . . . . Robots Built . | . . . . . . . . . . . . . . . . . . . . . . . . Authchips . | . . . . . . . . . . . . . . . . . . . . . . . . Time . | . . . . . . . . . . . . . . . . . . . . . . . . Total Robot Build Rating . | . . . . . . . . . . . . . . . . . . . . . . . . Part Schematics Acquired 9 | . . . 4 . . 1 . . . . . . . . . . 4 . . . . . . Parts Built 1 | . . . . . . . . . . . . 1 . . . . . . . . . . . Authchips . | . . . . . . . . . . . . . . . . . . . . . . . . Time 69 | . . . . . . . . . . . . 69 . . . . . . . . . . . Total Part Build Rating 9 | . . . . . . . . . . . . 9 . . . . . . . . . . . Parts Repaired 1 | . . . . . . . . . . . . . . . . . . . 1 . . . . Time 62 | . . . . . . . . . . . . . . . . . . . 62 . . . . Parts Recycled . | . . . . . . . . . . . . . . . . . . . . . . . . Recycled Matter . | . . . . . . . . . . . . . . . . . . . . . . . . Retrieved Matter . | . . . . . . . . . . . . . . . . . . . . . . . . Retrieved Components 10 | . . . . . . 10 . . . . . . . . . . . . . . . . . Parts Scanalyzed 5 | . . . 5 . . . . . . . . . . . . . . . . . . . . Part Schematics Acquired 4 | . . . 4 . . . . . . . . . . . . . . . . . . . . Parts Damaged 1 | . . . 1 . . . . . . . . . . . . . . . . . . . . Bothacking | -11 -10 -10 -8 -7 -7 -7 -5 -5 -5 -5 -4 -4 -4 -4 -4 -4 -4 -3 -3 -3 -3 -2 -1 ------------ Run | Yrd Mat Sub Mat Fac Sto Rec Fac Upp Upp War Pro Fac Was Fac Upp Upp Zhi Pro Res Arm Lab Res Acc Used RIF Installer . | . . . . . . . . . . . . . . . . . . . . . . . . Robots Hacked . | . . . . . . . . . . . . . . . . . . . . . . . . Non-combat . | . . . . . . . . . . . . . . . . . . . . . . . . Combat . | . . . . . . . . . . . . . . . . . . . . . . . . Robot Hacks Applied . | . . . . . . . . . . . . . . . . . . . . . . . . Relay Couplers Released 1 | . . . 1 . . . . . . . . . . . . . . . . . . . . Machine Destruction 1 | . . . 1 . . . . . . . . . . . . . . . . . . . . Fabnet Peak Effective % . | . . . . . . . . . . . . . . . . . . . . . . . . Robots Rewired 14 | . . . . . . 9 . . 5 . . . . . . . . . . . . . . Allies Hacked . | . . . . . . . . . . . . . . . . . . . . . . . . Hacks Repelled . | . . . . . . . . . . . . . . . . . . . . . . . . Allies | -11 -10 -10 -8 -7 -7 -7 -5 -5 -5 -5 -4 -4 -4 -4 -4 -4 -4 -3 -3 -3 -3 -2 -1 -------- Run | Yrd Mat Sub Mat Fac Sto Rec Fac Upp Upp War Pro Fac Was Fac Upp Upp Zhi Pro Res Arm Lab Res Acc Total Allies 15 | . . . . 1 . 9 . . 5 . . . . . . . . . . . . . . Largest Group 9 | . . . . 1 . 9 8 . 4 . . . . . . . . . . . . . . Highest-Rated Group 144 | . . . . 10 . 144 132 . 119 . . . . . . . . . . . . . . Highest-Rated Ally 32 | . . . . 10 . 32 32 . 30 . . . . . . . . . . . . . . Total Orders 1 | . . . . . . . 1 . . . . . . . . . . . . . . . . STAY 1 | . . . . . . . 1 . . . . . . . . . . . . . . . . Ally Attacks 55 | . . . . . . 4 13 . 38 . . . . . . . . . . . . . . Total Damage 910 | . . . . . . 177 179 . 554 . . . . . . . . . . . . . . Kills 3 | . . . . . . 2 . . 1 . . . . . . . . . . . . . . Allies Corrupted . | . . . . . . . . . . . . . . . . . . . . . . . . Allies Melted 2 | . . . . . . . . . . 2 . . . . . . . . . . . . . Intel | -11 -10 -10 -8 -7 -7 -7 -5 -5 -5 -5 -4 -4 -4 -4 -4 -4 -4 -3 -3 -3 -3 -2 -1 ------- Run | Yrd Mat Sub Mat Fac Sto Rec Fac Upp Upp War Pro Fac Was Fac Upp Upp Zhi Pro Res Arm Lab Res Acc Active Infowar (turns) 17087 | 76 926 1124 . 629 613 351 838 863 1067 1496 520 264 211 201 943 1395 346 514 2992 1118 367 221 12 Optics 13148 | . . . . . . . 836 863 1067 1496 520 264 211 201 943 1395 346 514 2814 1118 367 193 . Sensors 12594 | . . . . 629 613 351 681 592 943 550 468 264 78 130 943 1395 346 514 2481 1118 358 140 . IFF 11 | . . . . . . . . . 10 . . . . . . . 1 . . . . . . Seismic 6023 | 76 926 1124 . . . . . . . . . . . 28 924 1395 346 514 690 . . . . Cloaking 6093 | . . . . . . . . . . 2 16 59 16 . 906 1395 308 514 1161 1116 367 221 12 Jamming 91 | . . . . . . . . . . . 16 59 16 . . . . . . . . . . ECM 255 | . . . . . 122 . 133 . . . . . . . . . . . . . . . . Robot Analysis Total 8 | . 3 . . . . 1 . . . . . . . . . . 4 . . . . . . Derelict Logs Recovered 7 | . . 1 . . . . . 1 2 . 1 . . . 1 1 . . . . . . . Drone Launches . | . . . . . . . . . . . . . . . . . . . . . . . . Drone Recoveries . | . . . . . . . . . . . . . . . . . . . . . . . . Exploration | -11 -10 -10 -8 -7 -7 -7 -5 -5 -5 -5 -4 -4 -4 -4 -4 -4 -4 -3 -3 -3 -3 -2 -1 ------------- Run | Yrd Mat Sub Mat Fac Sto Rec Fac Upp Upp War Pro Fac Was Fac Upp Upp Zhi Pro Res Arm Lab Res Acc Turns Passed 27710 | 140 1096 6415 908 1062 613 3524 1271 863 1067 1496 520 264 211 201 943 1395 346 514 3110 1118 367 221 45 Spaces Moved 13458 | 61 600 2597 392 601 249 1543 628 662 760 987 404 175 105 99 450 549 189 223 1242 523 293 118 8 Core 7 | 5 . . 2 . . . . . . . . . . . . . . . . . . . . Treads 4734 | 56 92 1658 14 149 . 624 . 575 760 771 26 . . . . . . . 9 . . . . Legs 3985 | . . . . . . . 273 87 . 216 378 175 105 99 450 549 189 223 1233 8 . . . Wheels 4732 | . 508 939 376 452 249 919 355 . . . . . . . . . . . . 515 293 118 8 Hover . | . . . . . . . . . . . . . . . . . . . . . . . . Flight . | . . . . . . . . . . . . . . . . . . . . . . . . Fastest Speed 50 | 50 110 110 130 130 110 110 107 107 107 97 97 97 120 165 165 165 165 165 128 101 101 101 101 Average Speed 153 | 150 117 195 147 157 123 148 146 107 108 134 107 101 151 165 165 165 165 165 207 101 101 157 101 Slowest Speed 1250 | 160 160 240 1250 240 130 224 178 107 145 169 162 120 165 165 165 165 165 165 230 128 101 166 101 Overloaded Moves . | . . . . . . . . . . . . . . . . . . . . . . . . Propulsion Burnouts . | . . . . . . . . . . . . . . . . . . . . . . . . Robots Hopped . | . . . . . . . . . . . . . . . . . . . . . . . . Potential Cave-ins 7 | . . . . . . . . . . 1 . . . . . . . 6 . . . . . Cave-ins Triggered . | . . . . . . . . . . . . . . . . . . . . . . . . Teleports 2 | . . . . . . . . . . . . . . . . . . . . 1 . . 1 Exploration Rate (%) 51 | 5 83 97 42 17 27 99 18 78 71 94 63 5 83 3 81 72 61 54 38 39 100 4 1 Regions Visited 23 Branch Regions 13 Pre-discovered Areas 6 | . . 1 . . . . . 1 . . 1 . . . . . 3 . . . . . . Known Exits Taken 13 | . . . . 1 1 1 1 1 1 . . . . 1 1 1 1 1 1 . 1 . . Unknown Exits Taken 8 | 1 1 1 1 . . . . . . 1 1 . . . . . . . . 1 . 1 . Scrap Searched 25 | . . 10 . . . . . 2 2 . 2 . . . 5 2 . 2 . . . . . Spaces Dug 216 | . . 42 23 13 5 11 2 1 17 2 1 . . . 15 12 . 29 18 23 . 2 . Terrain Destroyed 1126 | . 113 214 282 13 6 13 46 4 26 10 24 7 1 1 25 44 . 49 100 109 3 36 . Melee 24 | . . . . 13 3 6 2 . . . . . . . . . . . . . . . . Projectile 349 | . . 5 17 . 3 7 6 4 9 10 24 7 1 1 25 31 . 49 56 85 3 6 . AOE 753 | . 113 209 265 . . . 38 . 17 . . . . . . 13 . . 44 24 . 30 . Terrain Rammed . | . . . . . . . . . . . . . . . . . . . . . . . . Walls Destroyed . | . . . . . . . . . . . . . . . . . . . . . . . . Machines Disabled . | . . . . . . . . . . . . . . . . . . . . . . . . Actions | -11 -10 -10 -8 -7 -7 -7 -5 -5 -5 -5 -4 -4 -4 -4 -4 -4 -4 -3 -3 -3 -3 -2 -1 --------- Run | Yrd Mat Sub Mat Fac Sto Rec Fac Upp Upp War Pro Fac Was Fac Upp Upp Zhi Pro Res Arm Lab Res Acc Total 19434 | 84 904 3721 602 683 522 2692 907 796 934 1140 457 236 139 123 617 998 215 314 1729 1071 365 139 46 Wait 4122 | . 200 940 87 16 215 963 157 102 67 49 10 27 5 6 135 413 4 42 253 380 17 1 33 Move 13436 | 60 599 2596 391 600 248 1542 627 661 759 986 403 175 104 98 449 548 188 222 1241 522 292 117 8 Hop . | . . . . . . . . . . . . . . . . . . . . . . . . Pick Up 182 | 4 24 14 8 11 9 10 18 6 2 24 5 2 1 . . . 1 . 16 15 11 1 . Fast Attach 82 | 8 . 1 4 4 8 2 2 1 . 8 1 2 2 5 1 . 7 . 8 4 14 . . Attach 65 | . 1 9 6 3 1 3 12 . 2 3 4 1 . . . . . . 5 4 4 5 2 Detach 29 | 1 . . . 1 . 4 4 . 1 . 1 2 1 . . . . . 4 4 3 3 . Swap 170 | . 20 35 20 7 8 4 4 6 12 6 . . . . 1 . . . 40 4 . 3 . Drop 196 | . 14 7 10 12 13 22 15 2 1 35 7 2 6 2 1 . 7 . 8 13 15 1 3 Fire 975 | 11 46 119 76 8 4 51 57 17 59 28 26 25 18 9 30 37 8 50 154 125 9 8 . Melee 57 | . . . . 16 16 14 11 . . . . . . . . . . . . . . . . Ram . | . . . . . . . . . . . . . . . . . . . . . . . . Kick 4 | . . . . . . . . . . . . . 1 3 . . . . . . . . . Crush 3 | . . . . 3 . . . . . . . . . . . . . . . . . . . Escape Stasis 2 | . . . . 2 . . . . . . . . . . . . . . . . . . . Rewire 108 | . . . . . . 77 . . 31 . . . . . . . . . . . . . . Trap 3 | . . . . . . . . 1 . 1 . . 1 . . . . . . . . . . Miscellaneous . | . . . . . . . . . . . . . . . . . . . . . . . . Route ------- -11/Scrapyard -10/Materials (discovered 5 exits: *Mat x3 / [Min] / *Sub) -10/Subcaves (discovered 3 exits: *Mat x2 / *Rec) -8/Materials -7/Factory (discovered 6 exits: *Fac x3 / *Sto / *Low x2) -7/Storage -7/Recycling -5/Factory -5/Upper Caves -5/Upper Caves (discovered 2 exits: *Fac / *War) -5/Warlord -4/Proximity Caves -4/Factory -4/Waste -4/Factory -4/Upper Caves -4/Upper Caves -4/Zhirov -3/Proximity Caves -3/Research (discovered 4 exits: *Res x3 / *Arm) -3/Armory -3/Lab -2/Research -1/Access History --------- Turn | Location | Event 5 | -11/Scrapyard | Discovered new exit (range 16) 141 | -11/Scrapyard | Entered Materials 305 | -10/Materials | Build established: Mutant 569 | -10/Materials | Discovered new exit (range 16) 653 | -10/Materials | Discovered new exit (range 7) 882 | -10/Materials | Discovered new exit (range 5) 945 | -10/Materials | Identified exit to Materials 971 | -10/Materials | Discovered new exit (range 17) 1198 | -10/Materials | Discovered new exit (range 3) 1237 | -10/Materials | Entered Subcaves 1238 | -10/Subcaves | Approached by a straggling Scientist 1475 | -10/Subcaves | Visited Clippyterm 1478 | -10/Subcaves | Learned 40 Factory zone layouts 1676 | -10/Subcaves | Ambushed by Subdweller buried in earth 1841 | -10/Subcaves | Discovered new exit (range 9) 1889 | -10/Subcaves | Learned Materials terminal intel 1910 | -10/Subcaves | Learned location of Zion (-7) 1910 | -10/Subcaves | Met a Zionite searching for "candidates" 1991 | -10/Subcaves | Shifting Twisted Machinery released Piercing Trap 1998 | -10/Subcaves | Shifting Twisted Machinery released Sub. Beam Cannon 2092 | -10/Subcaves | Shifting Twisted Machinery released Mak. Hammer 2227 | -10/Subcaves | Lost 3 parts (1n2w) 2521 | -10/Subcaves | Core integrity fell below 50% 2557 | -10/Subcaves | Lost 3 parts (1p1n1u) 2976 | -10/Subcaves | A swath of the cavern ceiling suddenly collapsed 3428 | -10/Subcaves | A swath of the cavern ceiling suddenly collapsed 5081 | -10/Subcaves | Visited 4L-MR0's lab 5114 | -10/Subcaves | Found Cargo Legs 6143 | -10/Subcaves | Ambushed by angry Subdweller bent on revenge 6338 | -10/Subcaves | Core integrity fell below 20% 6654 | -10/Subcaves | Discovered new exit (range 14) 7485 | -10/Subcaves | Shifting Twisted Machinery released Sub. Machine Gun 7497 | -10/Subcaves | Shifting Twisted Machinery released Sub. Beam Cannon 7542 | -10/Subcaves | Discovered new exit (range 11) 7652 | -10/Subcaves | Entered Materials 7652 | -8/Materials | Evolved 4 slots: Power x1, Propulsion x1, Utility x1, Weapon x1 7653 | -8/Materials | Loaded intel: 12 terminal locations 8452 | -8/Materials | First assault squad dispatched 8480 | -8/Materials | Discovered new exit (range 16) 8546 | -8/Materials | Destroyed 8 combat bots 8560 | -8/Materials | Entered Factory 8560 | -7/Factory | Evolved 2 slots: Propulsion x1, Utility x1 8561 | -7/Factory | Identified exit to Lower Caves 8561 | -7/Factory | Identified exit to Factory 8561 | -7/Factory | Identified exit to Storage 8579 | -7/Factory | Lost 3 parts (1n1u1w) 8820 | -7/Factory | Build established: Scavenger-Mutant 9249 | -7/Factory | Build established: Mutant 9622 | -7/Factory | Entered Storage 9834 | -7/Storage | Found Prototype Launcher 9834 | -7/Storage | Identified Rocket Array 10203 | -7/Storage | Used back door to open Recycling access 10203 | -7/Storage | Discovered new exit (range 4) 10233 | -7/Storage | Identified exit to Recycling 10235 | -7/Storage | Entered Recycling 10583 | -7/Recycling | Entered Scraplab 10588 | -7/Recycling | Found Prototype Device 10588 | -7/Recycling | Identified Scrap Engine 11644 | -7/Recycling | Build established: Construct 11743 | -7/Recycling | Discovered new exit (range 15) 12286 | -7/Recycling | Build established: Commander-Construct 13701 | -7/Recycling | Identified exit to Factory 13759 | -7/Recycling | Entered Factory 13759 | -5/Factory | Accompanied by 8 allies 13759 | -5/Factory | Evolved 4 slots: Utility x4 13825 | -5/Factory | Garrison activated, responded to threat 13895 | -5/Factory | Lost 5 allies 14154 | -5/Factory | Build established: Construct 14307 | -5/Factory | Lost 3 parts (3u) 14477 | -5/Factory | Garrison activated, responded to threat 14600 | -5/Factory | Build established: Mutant 14841 | -5/Factory | Discovered new exit (range 21) 14895 | -5/Factory | Identified exit to Upper Caves 14968 | -5/Factory | Build established: Hacker-Construct 15030 | -5/Factory | Entered Upper Caves 15240 | -5/Upper Caves | Acquired the password to a Derelict Tinkerer's latest research 15254 | -5/Upper Caves | Found Prototype Special Weapon 15414 | -5/Upper Caves | Caught by Unaware searching for contraband prototypes 15646 | -5/Upper Caves | Learned location of Warlord (-5) 15698 | -5/Upper Caves | Caught by Unaware searching for contraband prototypes 15889 | -5/Upper Caves | Discovered new exit (range 5) 15892 | -5/Upper Caves | Identified exit to Upper Caves 15893 | -5/Upper Caves | Entered another Upper Caves area 15914 | -5/Upper Caves | Attracted the attention of an 0b10 outpost 16088 | -5/Upper Caves | Discovered new exit (range 11) 16251 | -5/Upper Caves | Attracted the attention of an 0b10 checkpoint 16508 | -5/Upper Caves | Attacked by a delusional Derelict stockpiling Unaware 16891 | -5/Upper Caves | Encountered a Warlord checkpoint 16910 | -5/Upper Caves | Learned location of 1 exit from Factory 16946 | -5/Upper Caves | Build established: Construct 16950 | -5/Upper Caves | Discovered new exit (range 7) 16959 | -5/Upper Caves | Identified exit to Warlord 16960 | -5/Upper Caves | Entered Warlord 17010 | -5/Warlord | System corruption cleaned by Quarantine Array 17395 | -5/Warlord | Visited the Vortex Lab 17409 | -5/Warlord | Warlord's base attacked by MAIN.C 17414 | -5/Warlord | Found Prototype Energy Cannon 17416 | -5/Warlord | Found Prototype Energy Cannon 17421 | -5/Warlord | Found Prototype Energy Gun 17424 | -5/Warlord | Found Prototype Energy Gun 17510 | -5/Warlord | Found Prototype Device 17510 | -5/Warlord | Identified Exp. Cloaking Device 17521 | -5/Warlord | Found Prototype Device 17521 | -5/Warlord | Identified System Purifier 17530 | -5/Warlord | Found Prototype Hackware 17530 | -5/Warlord | Identified System Mapper 17759 | -5/Warlord | Warlord forces counterattacked 17760 | -5/Warlord | Spotted B-86 Titan 17778 | -5/Warlord | Spotted B-75 Beast 17788 | -5/Warlord | Spotted Striker 17791 | -5/Warlord | Build established: Hacker-Construct 17843 | -5/Warlord | Lost 8 allies 17898 | -5/Warlord | Spotted Executioner 17902 | -5/Warlord | Spotted Striker 17928 | -5/Warlord | Spotted Striker 17968 | -5/Warlord | Lost 17 allies 17968 | -5/Warlord | P-70 Sage assimilated allied 8C-8JU(Y) 17973 | -5/Warlord | P-70 Sage assimilated allied R5-FH3(Y) 18006 | -5/Warlord | System corruption reached 10% 18026 | -5/Warlord | Lost 3 allies 18084 | -5/Warlord | Warlord base infiltrated, sounded retreat 18086 | -5/Warlord | Met Warlord 18094 | -5/Warlord | Spotted Executioner 18134 | -5/Warlord | Spotted Executioner 18139 | -5/Warlord | Destroyed Executioner 18146 | -5/Warlord | Spotted Executioner 18175 | -5/Warlord | Lost 3 allies 18183 | -5/Warlord | Found Prototype Processor 18183 | -5/Warlord | Identified Exp. Core Analyzer 18189 | -5/Warlord | Spotted Executioner 18189 | -5/Warlord | Spotted Executioner 18222 | -5/Warlord | Found Exp. Core Analyzer 18227 | -5/Warlord | Found Corrupted Prototype Device 18227 | -5/Warlord | Identified Adv. Kinecellerator 18250 | -5/Warlord | Found Prototype Device 18250 | -5/Warlord | Identified Exp. Shock Absorption System 18326 | -5/Warlord | Spotted Striker 18335 | -5/Warlord | Core integrity fell below 50% 18336 | -5/Warlord | Spotted Executioner 18366 | -5/Warlord | Spotted Executioner 18379 | -5/Warlord | Lost 11 allies 18408 | -5/Warlord | Lost 3 parts (1p1u1w) 18437 | -5/Warlord | Spotted Striker 18438 | -5/Warlord | Spotted Executioner 18439 | -5/Warlord | Discovered new exit (range 13) 18456 | -5/Warlord | Entered Proximity Caves 18557 | -4/Proximity Caves | Identified Vortex Cannon (x2) 18757 | -4/Proximity Caves | Ambushed by research squad 18841 | -4/Proximity Caves | Learned location of Testing (-2) 18963 | -4/Proximity Caves | Discovered new exit (range 12) 18976 | -4/Proximity Caves | Entered Factory 18976 | -4/Factory | Evolved 2 slots: Propulsion x1, Utility x1 18977 | -4/Factory | Identified exit to Upper Caves 19171 | -4/Factory | Fabricated Hvy. Shield Leg (x1) 19240 | -4/Factory | Sucked down chute 19240 | -4/Factory | Entered Waste 19255 | -4/Waste | EMP discharged 19277 | -4/Waste | Spotted C-40 Crusher 19294 | -4/Waste | Destroyed C-40 Crusher 19294 | -4/Waste | Spotted C-40 Crusher 19311 | -4/Waste | Spotted C-40 Crusher 19314 | -4/Waste | Destroyed C-40 Crusher 19318 | -4/Waste | Spotted C-40 Crusher 19324 | -4/Waste | Destroyed C-40 Crusher 19326 | -4/Waste | Spotted C-40 Crusher 19334 | -4/Waste | Crushed by Compactor (0 parts destroyed, 2 dropped) 19344 | -4/Waste | Spotted C-40 Crusher 19351 | -4/Waste | Found Damper Plating 19355 | -4/Waste | EMP discharged 19413 | -4/Waste | Discovered new exit (range 22) 19420 | -4/Waste | Found Prototype Reactor 19451 | -4/Waste | Entered Factory 19638 | -4/Factory | Discovered exit to Upper Caves (range 8) 19652 | -4/Factory | Entered Upper Caves 19725 | -4/Upper Caves | Encountered a Warlord checkpoint 20529 | -4/Upper Caves | Attracted the attention of an 0b10 checkpoint 20567 | -4/Upper Caves | Discovered new exit (range 17) 20593 | -4/Upper Caves | Identified exit to Upper Caves 20595 | -4/Upper Caves | Entered another Upper Caves area 20675 | -4/Upper Caves | Learned Research emergency access door positions 21926 | -4/Upper Caves | Discovered new exit (range 5) 21932 | -4/Upper Caves | Identified exit to Zhirov 21990 | -4/Upper Caves | Entered Zhirov 21990 | -4/Zhirov | Discovered new exit (range 4) 22020 | -4/Zhirov | Met Zhirov 22050 | -4/Zhirov | Learned location of Quarantine (-3) 22050 | -4/Zhirov | Learned location of Command (-1) 22066 | -4/Zhirov | Zhirov requested help retrieving the SGEMP Prototype 22098 | -4/Zhirov | Found Alien Artifact 22098 | -4/Zhirov | Identified Integrated Dissipator 22098 | -4/Zhirov | Installed Integrated Dissipator, increased core heat dissipation (+20) 22126 | -4/Zhirov | Found Alien Artifact 22333 | -4/Zhirov | Identified exit to Proximity Caves 22336 | -4/Zhirov | Entered Proximity Caves 22612 | -3/Proximity Caves | Spotted B-86 Titan 22837 | -3/Proximity Caves | Discovered new exit (range 9) 22848 | -3/Proximity Caves | Identified exit to Research 22850 | -3/Proximity Caves | Entered Research 22850 | -3/Research | Evolved 2 slots: Power x1, Utility x1 22851 | -3/Research | Identified exit to Armory 23160 | -3/Research | Found Quantum Capacitor 23700 | -3/Research | Spotted B-86 Titan 24367 | -3/Research | Repaired Quantum Capacitor? 24670 | -3/Research | Garrison activated, responded to threat 24804 | -3/Research | Identified exit to Research 25859 | -3/Research | Build established: Hacker-Skirmisher 25960 | -3/Research | Entered Armory 26241 | -3/Armory | System corruption reached 10% 26270 | -3/Armory | Build established: Hacker-Construct 26643 | -3/Armory | Spotted B-86 Titan 26694 | -3/Armory | Spotted Armor Guard 26694 | -3/Armory | Spotted Armor Guard 26740 | -3/Armory | Destroyed Armor Guard 26750 | -3/Armory | Identified Transdimensional Reconstructor 26750 | -3/Armory | Warped through subspace to slip node 26750 | -3/Armory | Discovered new exit (range 1) 27053 | -3/Armory | Build established: Mutant 27078 | -3/Armory | Entered Lab 27082 | -3/Lab | Discovered exit to Research (range 9) 27095 | -3/Lab | Unable to decrypt terminal 27095 | -3/Lab | Opened the door to a hidden lab 27096 | -3/Lab | Gained access to the hidden lab's interior 27099 | -3/Lab | Detected by scanners 27101 | -3/Lab | Unable to decrypt terminal 27105 | -3/Lab | Confronted by A5 27114 | -3/Lab | Destroyed A5 27117 | -3/Lab | Found Prototype Protection 27117 | -3/Lab | Identified Med. Regenerative Plating 27122 | -3/Lab | Found Prototype Hackware 27122 | -3/Lab | Identified Exp. System Shield 27141 | -3/Lab | Unable to decrypt terminal 27168 | -3/Lab | Found Med. Regenerative Plating 27172 | -3/Lab | Found Prototype Energy Cannon 27172 | -3/Lab | Identified Warp Cannon 27178 | -3/Lab | Found Prototype Hackware 27178 | -3/Lab | Identified Deep Network Scanner 27199 | -3/Lab | Unable to decrypt terminal 27245 | -3/Lab | Unable to decrypt terminal 27246 | -3/Lab | Found Alien Artifact 27253 | -3/Lab | Identified LC Capacitor 27285 | -3/Lab | Found Warp Cannon 27311 | -3/Lab | Found Integrated Dissipator 27311 | -3/Lab | Installed Integrated Dissipator, increased core heat dissipation (+20) 27323 | -3/Lab | Found Alien Artifact 27323 | -3/Lab | Identified Core Regenerator 27323 | -3/Lab | Used Core Regenerator, restored core integrity (+325) 27337 | -3/Lab | Found Transdimensional Reconstructor 27344 | -3/Lab | Found Alien Artifact 27392 | -3/Lab | Found Prototype Special Weapon 27392 | -3/Lab | Identified Gui. Remote Datajack 27445 | -3/Lab | Entered Research 27445 | -2/Research | Evolved 2 slots: Utility x1, Weapon x1 27622 | -2/Research | Discovered new exit (range 16) 27666 | -2/Research | Entered Access 27666 | -1/Access | Evolved 2 slots: Power x1, Propulsion x1 27668 | -1/Access | Identified Singularity Reactor 27703 | -1/Access | Warped through subspace 27711 | -1/Access | Self-destructed Last Messages --------------- 27654_ Critical hit (Burn: +37). 27661_ Critical hit (Burn: +26). 27662_ Critical hit (Burn: +27). PARAMETERS=POWER+1,PROPULSION+1 LOCATION=UNKNOWN GOAL=ESCAPE 27666_ Dropped LC Capacitor. 27667_ Discarded Antimatter-Neutrino Reactor. 27667_ Arm. Scrap Engine damaged due to network destabilization (-8). 27668_ Identified Singularity Reactor. 27669_ Dropped Broken Singularity Reactor. LC Capacitor integrity failing. 27673_ Arm. Scrap Engine consumes Broken Singularity Reactor. LC Capacitor integrity failing. 27703_ Arm. Scrap Engine constructs Singularity-Neutrino Reactor. 27703_ Warped through subspace. 27711_ Exp. Core Analyzer destroyed. Map ----- +----------------------------------------------------+ | ?????????????????????????????????????????????????? | | ?????????????????????????????????????????????????? | | ?????????????????????????????????????????????????? | | ?????????????????????????????????????????????????? | | ?????????????????????????????????????????????????? | | ?????????????????????????????????????????????????? | | ?????????????????????????????????????????????????? | | ?????????????????????????????????????????????????? | | ?????????????????????????????????????????????????? | | ?????????????????????????????????????????????????? | | ????????????????????????? ????????????????####+### | | ?????????????????????????k????????????????# | | ????????????????????????? ????????????????# | | ????????????????????????? ????????????????# | | ????????????????????????? ???????? ??????# | | ????????????????????????? ??????? ???????# | | ????????????????????????? ??????t ????????# | | ??????????????####+###### ######/########## | | ??????????????# g | | ??????????????# gg | | ??????????????? l | | ????????????????? ! | | ??????????????????? | | ????????????????????? k ? | | ??????????????????????? ???? | | ??????????????????????###@#############+########## | | ??????????????????????# #????????????????? | | ??????????????????????# #????????????????? | | ??????????????????????# #????????????????? | | ??????????????????????# #????????????????? | | ??????????????????????# #????????????????? | | ??????????????????????# #????????????????? | | ??????????????????????# #????????????????? | | ??????????????????????#! #????????????????? | | ??????????????????????# #????????????????? | | ??????????????????????# """""#????????????????? | | ??????????????????????# """""#????????????????? | | ??????????????????????# """""#????????????????? | | ??????????????????????# """""#????????????????? | | ??????????????????????# = ""????????????????????? | | ??????????????????????# ????????????????????? | | ??????????????????????# ????????????????????? | | ??????????????????????#######????????????????????? | | ?????????????????????????????????????????????????? | | ?????????????????????????????????????????????????? | | ?????????????????????????????????????????????????? | | ?????????????????????????????????????????????????? | | ?????????????????????????????????????????????????? | | ?????????????????????????????????????????????????? | | ?????????????????????????????????????????????????? | +----------------------------------------------------+ Best States ------------- Heat Dissipation 127 Coolant Potential 120 Energy Generation 103 Energy Capacity 974 Matter Stores 300 Matter Capacity 600 Sight Range 22 Robot Scan Range 19 Terrain Scan Density 10 ECM Strength 2 Jamming Range 14 Cloak Strength 4 Power Amplification 40 Base Temperature (-) 200 Armor Coverage 1600 Resistance: EM 90 Evasion (%) 55 Core Analysis 8 Recoil Reduction 4 Kinecelleration 50 Offensive Hacking 25 Defensive Hacking 12 Item Schematics ----------------- Sub. Shrapnel Launcher | -8/Materials | Scanalyzed Sub. Machine Gun | -8/Materials | Scanalyzed Sub. Beam Cannon | -8/Materials | Scanalyzed Multitool | -8/Materials | Scanalyzed Enh. Optical Array | -7/Recycling | Hacked Assault Drone Bay | -4/Zhirov | Free Exp. Heat Sink | -4/Zhirov | Free Exp. Optical Array | -4/Zhirov | Free Imp. Arc Thrower | -4/Zhirov | Free Robot Schematics ------------------ G-34 Mercenary | -10/Materials | Hacked Fabricated ------------ Hvy. Shield Leg | x1 | -4/Factory | Preloaded Repaired ---------- Quantum Capacitor | 38% | -3/Research Alien Tech Used ----------------- Integrated Dissipator Transdimensional Reconstructor LC Capacitor Core Regenerator Achievements -------------- Anyone Home? Ultimate Loadout Challenges ------------ None Game ------ Seed ImprinterOvertunedCyclogen Manual? 0 Play Time 04:12:13 Cumulative 237.8 hours Start 2025.08.20 @ 16:39:17 End 2025.08.20 @ 22:26:52 Sessions 7 Manual Loads 0 Difficulty Rogue Special Mode None Game No. 169 Rogue 169 Adventurer 0 Explorer 0 Win Type - Total 2 Types 2/0/0/0/0/0/0/0/0/0 Lore% 68 Gallery% 66 Achievement% 57 Wizard Run 0 Options --------- Layout 1 ASCII 0 Keyboard 0 Movement Mouse Keybinds 0 Fullscreen 1 Font 32/SmallcapsGlow Map View 50x35 Zoom Use 0% Tactical HUD 1 Map Filters NONE Filters NONE Steam 1 RUN: c931af48-3df2-49fd-b339-80090cb86e0a